fUSD/lending_fUSD_20240628
["ID","MTS","AMOUNT","RATE_DAILY","PERIOD"]
[330529470,1719558758600,-500.0,0.00020821,2]
[330529471,1719558758610,-500.0,0.00020821,2]
[330529472,1719558758621,-500.0,0.00020821,2]
[330529473,1719558758632,-500.0,0.00020821,2]
[330529474,1719558758643,-544.83,0.00020821,2]
[330529475,1719558758653,-1021.32,0.00020821,2]
[330529476,1719558758663,-803.25,0.00020821,2]
[330529477,1719558758672,-507.24290664,0.00020821,2]
[330529478,1719558758682,-500.0,0.00020821,2]
[330529479,1719558758692,-500.0,0.00020821,2]
[330529480,1719558758702,-500.0,0.00020821,2]
[330529481,1719558759055,-500.0,0.00020821,2]
[330529482,1719558759067,-500.0,0.00020821,2]
[330529483,1719558759077,-933.12,0.00020821,2]
[330529484,1719558759087,-1198.98,0.00020821,2]
[330529485,1719558759097,-671.66,0.00020821,2]
[330529486,1719558759111,-1546.54,0.00020821,2]
[330529487,1719558759120,-500.0,0.00020821,2]
[330529488,1719558759130,-500.0,0.00020821,2]
[330529489,1719558759139,-853.88,0.00020821,2]
[330529490,1719558759151,-1991.97,0.00020821,2]
[330529491,1719558759161,-557.1404149,0.00020821,2]
[330529492,1719558759170,-500.0,0.00020821,2]
[330529493,1719558759180,-500.0,0.00020821,2]
[330529494,1719558759193,-878.16,0.00020821,2]
[330529495,1719558759203,-500.0,0.00020821,2]
[330529496,1719558759212,-500.0,0.00020821,2]
[330529497,1719558759221,-1108.4,0.00020821,2]
[330529498,1719558759232,-1797.61,0.00020821,2]
[330529499,1719558759242,-830.15,0.00020821,2]
[330529500,1719558759252,-500.0,0.00020821,2]
[330529501,1719558759261,-692.09,0.00020821,2]
[330529502,1719558759272,-1458.9,0.00020821,2]
[330529503,1719558759281,-500.0,0.00020821,2]
[330529504,1719558759291,-641.24709369,0.00020821,2]
[330529505,1719558759301,-857.9,0.00020821,2]
[330529506,1719558759311,-565.29,0.00020821,2]
[330529507,1719558759321,-500.0,0.00020821,2]
[330529508,1719558759330,-804.11,0.00020821,2]
[330529509,1719558759340,-500.0,0.00020821,2]
[330529510,1719558759350,-500.0,0.00020821,2]
[330529511,1719558759359,-971.38,0.00020821,2]
[330529512,1719558759369,-864.9,0.00020821,2]
[330529513,1719558759379,-500.0,0.00020821,2]
[330529514,1719558759389,-577.35,0.00020821,2]
[330529515,1719558759398,-500.0,0.00020821,2]
[330529516,1719558759408,-1590.21,0.00020821,2]
[330529517,1719558759418,-500.0,0.00020821,2]
[330529518,1719558759428,-2934.36,0.00020821,2]
[330529519,1719558759438,-1486.58,0.00020821,2]
[330529520,1719558759448,-500.0,0.00020821,2]
[330529521,1719558759457,-894.6,0.00020821,2]
[330529522,1719558759470,-3334.49,0.00020821,2]
[330529523,1719558759480,-1364.86,0.00020821,2]
[330529524,1719558759490,-776.63,0.00020821,2]
[330529525,1719558759499,-500.0,0.00020821,2]
[330529526,1719558759509,-500.0,0.00020821,2]
[330529527,1719558759518,-818.59,0.00020821,2]
[330529528,1719558759528,-500.0,0.00020821,2]
[330529529,1719558759537,-500.0,0.00020821,2]
[330529530,1719558759546,-500.0,0.00020821,2]
[330529531,1719558759556,-916.78,0.00020821,2]
[330529532,1719558759566,-500.0,0.00020821,2]
[330529533,1719558759575,-500.0,0.00020821,2]
[330529534,1719558759585,-500.0,0.00020821,2]
[330529535,1719558759594,-500.0,0.00020821,2]
[330529536,1719558759603,-500.0,0.00020821,2]
[330529537,1719558759613,-152.43690269,0.00020821,2]
[330529538,1719558759623,-500.0,0.00020821,2]
[330529539,1719558759632,-1606.4,0.00020821,2]
[330529540,1719558759641,-500.0,0.00020821,2]
[330529541,1719558759651,-500.0,0.00020821,2]
[330529542,1719558759660,-1523.71,0.00020821,2]
[330529543,1719558759669,-500.0,0.00020821,2]
[330529544,1719558759679,-500.0,0.00020821,2]
[330529545,1719558759688,-2289.07,0.00020821,2]
[330529546,1719558759699,-500.0,0.00020821,2]
[330529547,1719558759708,-2134.84,0.00020821,2]
[330529548,1719558759718,-500.0,0.00020821,2]
[330529549,1719558759728,-540.94,0.00020821,2]
[330529550,1719558759738,-500.0,0.00020821,2]
[330529551,1719558759748,-500.0,0.00020821,2]
[330529552,1719558759757,-1182.97,0.00020821,2]
[330529553,1719558759767,-687.74,0.00020821,2]
[330529554,1719558759777,-2844.29,0.00020821,2]
[330529555,1719558759786,-1516.21,0.00020821,2]
[330529556,1719558759795,-500.0,0.00020821,2]
[330529557,1719558759805,-877.81,0.00020821,2]
[330529558,1719558759814,-8203.94,0.00020821,2]
[330529559,1719558759824,-622.75,0.00020821,2]
[330529560,1719558759833,-687.83,0.00020821,2]
[330529561,1719558759843,-2943.91,0.00020821,2]
[330529562,1719558759853,-500.0,0.00020821,2]
[330529563,1719558759862,-500.0,0.00020821,2]
[330529564,1719558759872,-500.0,0.00020821,2]
[330529565,1719558759881,-500.0,0.00020821,2]
[330529566,1719558759891,-1079.86,0.00020821,2]
[330529567,1719558759900,-500.0,0.00020821,2]
[330529568,1719558759910,-500.0,0.00020821,2]
[330529569,1719558759920,-670.57,0.00020821,2]
[330529570,1719558759929,-500.0,0.00020821,2]
[330529571,1719558759939,-500.0,0.00020821,2]
[330529572,1719558759949,-1243.35,0.00020821,2]
[330529573,1719558759958,-500.0,0.00020821,2]
[330529574,1719558759968,-678.82,0.00020821,2]
[330529575,1719558759977,-500.0,0.00020821,2]
[330529576,1719558759987,-972.29,0.00020821,2]
[330529577,1719558759996,-500.0,0.00020821,2]
[330529578,1719558760005,-983.07,0.00020821,2]
[330529579,1719558760015,-1703.42,0.00020821,2]
[330529580,1719558760024,-10921.42,0.00020821,2]
[330529581,1719558760034,-1718.14,0.00020821,2]
[330529582,1719558760043,-500.0,0.00020821,2]
[330529583,1719558760053,-500.0,0.00020821,2]
[330529584,1719558760062,-3108.58,0.00020821,2]
[330529585,1719558760072,-788.1,0.00020821,2]
[330529586,1719558760083,-1852.59,0.00020821,2]
[330529587,1719558760092,-500.0,0.00020821,2]
[330529588,1719558760103,-1484.3,0.00020821,2]
[330529589,1719558760115,-500.0,0.00020821,2]
[330529590,1719558760125,-500.0,0.00020821,2]
[330529591,1719558760134,-500.0,0.00020821,2]
[330529592,1719558760143,-500.0,0.00020821,2]
[330529593,1719558760156,-3216.82,0.00020821,2]
[330529594,1719558760166,-500.0,0.00020821,2]
[330529595,1719558760177,-500.0,0.00020821,2]
[330529596,1719558760188,-638.54,0.00020821,2]
[330529597,1719558760199,-602.72,0.00020821,2]
[330529598,1719558760208,-557.47,0.00020821,2]
[330529599,1719558760217,-766.29,0.00020821,2]
[330529600,1719558760226,-1832.43,0.00020821,2]
[330529601,1719558760236,-500.0,0.00020821,2]
[330529602,1719558760245,-3427.76,0.00020821,2]
[330529603,1719558760255,-5215.3,0.00020821,2]
[330529604,1719558760265,-790.32,0.00020821,2]
[330529605,1719558760274,-800.58,0.00020821,2]
[330529606,1719558760284,-1166.53,0.00020821,2]
[330529607,1719558760293,-500.0,0.00020821,2]
[330529608,1719558760304,-500.0,0.00020821,2]
[330529609,1719558760314,-574.41036332,0.00020821,2]
[330529610,1719558760323,-539.42,0.00020821,2]
[330529611,1719558760333,-1302.32,0.00020821,2]
[330529612,1719558760343,-500.0,0.00020821,2]
[330529613,1719558760352,-3384.08,0.00020821,2]
[330529614,1719558760362,-1365.76,0.00020821,2]
[330529615,1719558760371,-989.66,0.00020821,2]
[330529616,1719558760381,-2076.44,0.00020821,2]
[330529617,1719558760392,-815.26,0.00020821,2]
[330529618,1719558760402,-520.33,0.00020821,2]
[330529619,1719558760412,-1406.52,0.00020821,2]
[330529620,1719558760422,-1219.21,0.00020821,2]
[330529621,1719558760432,-500.0,0.00020821,2]
[330529622,1719558760442,-3267.35,0.00020821,2]
[330529623,1719558760452,-1558.11,0.00020821,2]
[330529624,1719558760461,-500.0,0.00020821,2]
[330529625,1719558760471,-500.0,0.00020821,2]
[330529626,1719558760481,-2141.73,0.00020821,2]
[330529627,1719558760490,-479.61861322,0.00020821,2]
[330529628,1719558760500,-500.0,0.00020821,2]
[330529629,1719558760510,-500.0,0.00020821,2]
[330529630,1719558760520,-1902.0,0.00020821,2]
[330529631,1719558760530,-1907.18,0.00020821,2]
[330529632,1719558760539,-500.0,0.00020821,2]
[330529633,1719558760549,-1934.24,0.00020821,2]
[330529634,1719558760558,-1347.33,0.00020821,2]
[330529635,1719558760568,-1238.63,0.00020821,2]
[330529636,1719558760577,-1650.8,0.00020821,2]
[330529637,1719558760586,-911.26,0.00020821,2]
[330529638,1719558760596,-500.0,0.00020821,2]
[330529639,1719558760605,-804.56,0.00020821,2]
[330529640,1719558760615,-593.54,0.00020821,2]
[330529641,1719558760624,-500.0,0.00020821,2]
[330529642,1719558760634,-1609.09,0.00020821,2]
[330529643,1719558760643,-2348.43,0.00020821,2]
[330529644,1719558760653,-500.0,0.00020821,2]
[330529645,1719558760663,-500.0,0.00020821,2]
[330529646,1719558760672,-1742.51,0.00020821,2]
[330529647,1719558760682,-500.0,0.00020821,2]
[330529648,1719558760692,-1920.03,0.00020821,2]
[330529649,1719558760702,-710.83,0.00020821,2]
[330529650,1719558760711,-1879.31,0.00020821,2]
[330529651,1719558760721,-500.0,0.00020821,2]
[330529652,1719558760730,-500.0,0.00020821,2]
[330529653,1719558760740,-765.65,0.00020821,2]
[330529654,1719558760749,-903.08,0.00020821,2]
[330529655,1719558760758,-2975.68,0.00020821,2]
[330529656,1719558760768,-500.0,0.00020821,2]
[330529657,1719558760777,-650.87,0.00020821,2]
[330529658,1719558760786,-500.0,0.00020821,2]
[330529659,1719558760796,-1810.96,0.00020821,2]
[330529660,1719558760805,-500.0,0.00020821,2]
[330529661,1719558760814,-500.0,0.00020821,2]
[330529662,1719558760824,-500.0,0.00020821,2]
[330529663,1719558760833,-500.0,0.00020821,2]
[330529664,1719558760843,-500.0,0.00020821,2]
[330529665,1719558760852,-1015.21,0.00020821,2]
[330529666,1719558760861,-1769.92,0.00020821,2]
[330529667,1719558760871,-999.93,0.00020821,2]
[330529668,1719558760880,-674.68,0.00020821,2]
[330529669,1719558760889,-500.0,0.00020821,2]
[330529670,1719558760899,-3979.08,0.00020821,2]
[330529671,1719558760908,-3293.63,0.00020821,2]
[330529672,1719558760917,-1612.44,0.00020821,2]
[330529673,1719558760927,-942.11,0.00020821,2]
[330529674,1719558760936,-4986.05,0.00020821,2]
[330529675,1719558760946,-1330.05,0.00020821,2]
[330529676,1719558760955,-1680.98,0.00020821,2]
[330529677,1719558760965,-500.0,0.00020821,2]
[330529678,1719558760974,-500.0,0.00020821,2]
[330529679,1719558760983,-2541.57,0.00020821,2]
[330529680,1719558760992,-1249.46,0.00020821,2]
[330529681,1719558761002,-500.0,0.00020821,2]
[330529682,1719558761011,-734.3,0.00020821,2]
[330529683,1719558761020,-573.83,0.00020821,2]
[330529684,1719558761030,-1210.78,0.00020821,2]
[330529685,1719558761040,-625.67,0.00020821,2]
[330529686,1719558761050,-4578.15,0.00020821,2]
[330529687,1719558761059,-500.0,0.00020821,2]
[330529688,1719558761068,-2383.44,0.00020821,2]
[330529689,1719558761078,-500.0,0.00020821,2]
[330529690,1719558761087,-844.96,0.00020821,2]
[330529691,1719558761097,-2196.52,0.00020821,2]
[330529692,1719558761108,-478.11923802,0.00020821,2]
[330529693,1719558761118,-3981.14,0.00020821,2]
[330529694,1719558761128,-612.6124221,0.00020821,2]
[330529695,1719558761138,-551.78,0.00020821,2]
[330529696,1719558761147,-656.83,0.00020821,2]
[330529697,1719558761160,-1673.87,0.00020821,2]
[330529698,1719558761171,-1241.02,0.00020821,2]
[330529699,1719558761180,-500.0,0.00020821,2]
[330529700,1719558761190,-500.0,0.00020821,2]
[330529701,1719558761200,-1907.75,0.00020821,2]
[330529702,1719558761210,-1008.45,0.00020821,2]
[330529703,1719558761220,-1072.67,0.00020821,2]
[330529704,1719558761230,-1578.09,0.00020821,2]
[330529705,1719558761239,-1693.02,0.00020821,2]
[330529706,1719558761248,-671.7,0.00020821,2]
[330529707,1719558761258,-500.0,0.00020821,2]
[330529708,1719558761267,-1010.02,0.00020821,2]
[330529709,1719558761277,-500.0,0.00020821,2]
[330529710,1719558761286,-1100.6,0.00020821,2]
[330529711,1719558761295,-15955.78,0.00020821,2]
[330529712,1719558761305,-711.02,0.00020821,2]
[330529713,1719558761315,-2386.74,0.00020821,2]
[330529714,1719558761324,-500.0,0.00020821,2]
[330529715,1719558761334,-582.95,0.00020821,2]
[330529716,1719558761343,-531.63,0.00020821,2]
[330529717,1719558761352,-500.0,0.00020821,2]
[330529718,1719558761362,-2068.97,0.00020821,2]
[330529719,1719558761371,-500.0,0.00020821,2]
[330529720,1719558761381,-500.0,0.00020821,2]
[330529721,1719558761390,-851.02,0.00020821,2]
[330529722,1719558761400,-500.0,0.00020821,2]
[330529723,1719558761409,-500.0,0.00020821,2]
[330529724,1719558761419,-2076.19,0.00020821,2]
[330529725,1719558761554,-3840.25,0.00020821,2]
[330529726,1719558761563,-712.82,0.00020821,2]
[330529727,1719558761573,-1143.68,0.00020821,2]
[330529728,1719558761582,-2225.32,0.00020821,2]
[330529729,1719558761592,-500.0,0.00020821,2]
[330529730,1719558761602,-1392.44,0.00020821,2]
[330529731,1719558761611,-6077.81,0.00020821,2]
[330529732,1719558761621,-753.76,0.00020821,2]
[330529733,1719558761631,-1105.67,0.00020821,2]
[330529734,1719558761641,-500.0,0.00020821,2]
[330529735,1719558761650,-560.48,0.00020821,2]
[330529736,1719558761659,-1578.03,0.00020821,2]
[330529737,1719558761668,-632.32,0.00020821,2]
[330529738,1719558761678,-1002.32,0.00020821,2]
[330529739,1719558761687,-620.19105377,0.00020821,2]
[330529740,1719558761696,-1981.01,0.00020821,2]
[330529741,1719558761705,-500.0,0.00020821,2]
[330529742,1719558761714,-718.91,0.00020821,2]
[330529743,1719558761723,-500.0,0.00020821,2]
[330529744,1719558761733,-2329.42,0.00020821,2]
[330529745,1719558761743,-1316.28,0.00020821,2]
[330529746,1719558761753,-500.0,0.00020821,2]
[330529747,1719558761762,-1144.62,0.00020821,2]
[330529748,1719558761771,-500.0,0.00020821,2]
[330529749,1719558761781,-1712.61,0.00020821,2]
[330529750,1719558761791,-1563.65,0.00020821,2]
[330529751,1719558761800,-500.0,0.00020821,2]
[330529752,1719558761810,-2454.2,0.00020821,2]
[330529753,1719558761819,-500.0,0.00020821,2]
[330529754,1719558761828,-500.0,0.00020821,2]
[330529755,1719558761838,-500.0,0.00020821,2]
[330529756,1719558761847,-500.0,0.00020821,2]
[330529757,1719558761856,-1141.19,0.00020821,2]
[330529758,1719558761865,-3101.9,0.00020821,2]
[330529759,1719558761874,-500.0,0.00020821,2]
[330529760,1719558761883,-500.0,0.00020821,2]
[330529761,1719558761892,-610.25,0.00020821,2]
[330529762,1719558761902,-500.0,0.00020821,2]
[330529763,1719558761912,-500.0,0.00020821,2]
[330529764,1719558761922,-1574.21,0.00020821,2]
[330529765,1719558761931,-550.00964414,0.00020821,2]
[330529766,1719558761941,-634.6,0.00020821,2]
[330529767,1719558761952,-2674.4,0.00020821,2]
[330529768,1719558761962,-754.7,0.00020821,2]
[330529769,1719558761972,-500.0,0.00020821,2]
[330529770,1719558761981,-2060.65,0.00020821,2]
[330529771,1719558761991,-6990.29,0.00020821,2]
[330529772,1719558762000,-1842.26,0.00020821,2]
[330529773,1719558762009,-963.45,0.00020821,2]
[330529774,1719558762019,-500.0,0.00020821,2]
[330529775,1719558762028,-14366.4,0.00020821,2]
[330529776,1719558762037,-2857.87,0.00020821,2]
[330529777,1719558762047,-307.8478114,0.00020821,2]
[330529778,1719558762056,-1171.76,0.00020821,2]
[330529779,1719558762065,-558.83,0.00020821,2]
[330529780,1719558762073,-1203.56,0.00020821,2]
[330529781,1719558762082,-500.0,0.00020821,2]
[330529782,1719558762092,-500.0,0.00020821,2]
[330529783,1719558762102,-2811.74,0.00020821,2]
[330529784,1719558762116,-3675.92,0.00020821,2]
[330529785,1719558762125,-1680.8,0.00020821,2]
[330529786,1719558762135,-1244.61,0.00020821,2]
[330529787,1719558762144,-500.0,0.00020821,2]
[330529788,1719558762154,-865.19,0.00020821,2]
[330529789,1719558762165,-631.75,0.00020821,2]
[330529790,1719558762174,-2271.99,0.00020821,2]
[330529791,1719558762186,-641.86,0.00020821,2]
[330529792,1719558762196,-500.0,0.00020821,2]
[330529793,1719558762206,-955.4,0.00020821,2]
[330529794,1719558762215,-500.0,0.00020821,2]
[330529795,1719558762225,-891.75,0.00020821,2]
[330529796,1719558762234,-500.0,0.00020821,2]
[330529797,1719558762243,-1486.73,0.00020821,2]
[330529798,1719558762253,-1073.63,0.00020821,2]
[330529799,1719558762263,-516.07,0.00020821,2]
[330529800,1719558762272,-3152.16,0.00020821,2]
[330529801,1719558762282,-500.0,0.00020821,2]
[330529802,1719558762291,-500.0,0.00020821,2]
[330529803,1719558762300,-2841.69,0.00020821,2]
[330529804,1719558762309,-768.74,0.00020821,2]
[330529805,1719558762319,-3121.13,0.00020821,2]
[330529806,1719558762328,-500.0,0.00020821,2]
[330529807,1719558762337,-1232.34,0.00020821,2]
[330529808,1719558762346,-1346.16,0.00020821,2]
[330529809,1719558762355,-94318.51,0.00020821,2]
[330529810,1719558762364,-500.0,0.00020821,2]
[330529811,1719558762373,-500.0,0.00020821,2]
[330529812,1719558762382,-546.98,0.00020821,2]
[330529813,1719558762391,-500.0,0.00020821,2]
[330529814,1719558762400,-1794.64,0.00020821,2]
[330529815,1719558762409,-1919.41,0.00020821,2]
[330529816,1719558762418,-500.0,0.00020821,2]
[330529817,1719558762428,-3062.76,0.00020821,2]
[330529818,1719558762440,-1494.4,0.00020821,2]
[330529819,1719558762451,-2328.24,0.00020821,2]
[330529820,1719558762460,-500.0,0.00020821,2]
[330529821,1719558762469,-1132.48,0.00020821,2]
[330529822,1719558762479,-1692.21,0.00020821,2]
[330529823,1719558762489,-587.64,0.00020821,2]
[330529824,1719558762497,-500.0,0.00020821,2]
[330529825,1719558762509,-500.0,0.00020821,2]
[330529826,1719558762518,-500.0,0.00020821,2]
[330529827,1719558762527,-1549.64,0.00020821,2]
[330529828,1719558762536,-749.53,0.00020821,2]
[330529829,1719558762545,-500.0,0.00020821,2]
[330529830,1719558762554,-287.2119249,0.00020821,2]
[330529831,1719558762564,-500.0,0.00020821,2]
[330529832,1719558762573,-2990.61,0.00020821,2]
[330529833,1719558762582,-500.0,0.00020821,2]
[330529834,1719558762592,-500.0,0.00020821,2]
[330529835,1719558762601,-5676.22,0.00020821,2]
[330529836,1719558762610,-1699.92,0.00020821,2]
[330529837,1719558762619,-1406.76,0.00020821,2]
[330529838,1719558762628,-500.0,0.00020821,2]
[330529839,1719558762637,-500.0,0.00020821,2]
[330529840,1719558762646,-1151.27,0.00020821,2]
[330529841,1719558762655,-6172.44,0.00020821,2]
[330529842,1719558762664,-1028.2,0.00020821,2]
[330529843,1719558762673,-2223.09,0.00020821,2]
[330529844,1719558762682,-1414.06,0.00020821,2]
[330529845,1719558762691,-500.0,0.00020821,2]
[330529846,1719558762701,-1326.41,0.00020821,2]
[330529847,1719558762711,-828.67,0.00020821,2]
[330529848,1719558762720,-500.0,0.00020821,2]
[330529849,1719558762734,-500.0,0.00020821,2]
[330529850,1719558762743,-1337.2,0.00020821,2]
[330529851,1719558762754,-500.0,0.00020821,2]
[330529852,1719558762764,-500.0,0.00020821,2]
[330529853,1719558762773,-500.0,0.00020821,2]
[330529854,1719558762782,-1272.4,0.00020821,2]
[330529855,1719558762792,-20000.0,0.00020821,2]
[330529856,1719558762801,-2249.71,0.00020821,2]
[330529857,1719558762811,-500.0,0.00020821,2]
[330529858,1719558762820,-991.33,0.00020821,2]
[330529859,1719558762830,-911.5,0.00020821,2]
[330529860,1719558762839,-500.0,0.00020821,2]
[330529861,1719558762850,-2053.7,0.00020821,2]
[330529862,1719558762860,-1776.01,0.00020821,2]
[330529863,1719558762871,-500.0,0.00020821,2]
[330529864,1719558762880,-500.0,0.00020821,2]
[330529865,1719558762891,-500.0,0.00020821,2]
[330529866,1719558762901,-1857.47,0.00020821,2]
[330529867,1719558762911,-2155.64,0.00020821,2]
[330529868,1719558762920,-765.5,0.00020821,2]
[330529869,1719558762930,-500.0,0.00020821,2]
[330529870,1719558762943,-3125.25,0.00020821,2]
[330529871,1719558762954,-500.0,0.00020821,2]
[330529872,1719558762963,-500.0,0.00020821,2]
[330529873,1719558762973,-837.45,0.00020821,2]
[330529874,1719558762983,-559.67,0.00020821,2]
[330529875,1719558762992,-1334.79,0.00020821,2]
[330529876,1719558763002,-500.0,0.00020821,2]
[330529877,1719558763012,-2687.59,0.00020821,2]
[330529878,1719558763021,-6386.04,0.00020821,2]
[330529879,1719558763031,-982.76,0.00020821,2]
[330529880,1719558763041,-500.0,0.00020821,2]
[330529881,1719558763052,-3632.77,0.00020821,2]
[330529882,1719558763062,-500.0,0.00020821,2]
[330529883,1719558763072,-2037.7,0.00020821,2]
[330529884,1719558763083,-3058.6,0.00020821,2]
[330529885,1719558763093,-1150.81,0.00020821,2]
[330529886,1719558763104,-1265.33,0.00020821,2]
[330529887,1719558763123,-500.0,0.00020821,2]
[330529888,1719558763139,-5445.86,0.00020821,2]
[330529889,1719558763148,-2092.76,0.00020821,2]
[330529890,1719558763160,-500.0,0.00020821,2]
[330529891,1719558763170,-500.0,0.00020821,2]
[330529892,1719558763180,-2347.47,0.00020821,2]
[330529893,1719558763190,-3956.23,0.00020821,2]
[330529894,1719558763200,-2747.06,0.00020821,2]
[330529895,1719558763210,-500.0,0.00020821,2]
[330529896,1719558763219,-1187.2,0.00020821,2]
[330529897,1719558763229,-794.56,0.00020821,2]
[330529898,1719558763240,-500.0,0.00020821,2]
[330529899,1719558763249,-1734.74,0.00020821,2]
[330529900,1719558763259,-750.32,0.00020821,2]
[330529901,1719558763269,-697.84,0.00020821,2]
[330529902,1719558763278,-1162.29,0.00020821,2]
[330529903,1719558763288,-1131.13,0.00020821,2]
[330529904,1719558763298,-1270.56,0.00020821,2]
[330529905,1719558763307,-563.55,0.00020821,2]
[330529906,1719558763317,-500.0,0.00020821,2]
[330529907,1719558763327,-652.88,0.00020821,2]
[330529908,1719558763337,-534.31,0.00020821,2]
[330529909,1719558763347,-500.0,0.00020821,2]
[330529910,1719558763356,-701.47,0.00020821,2]
[330529911,1719558763365,-894.63,0.00020821,2]
[330529912,1719558763374,-3879.02,0.00020821,2]
[330529913,1719558763384,-3149.86,0.00020821,2]
[330529914,1719558763393,-3389.68,0.00020821,2]
[330529915,1719558763403,-818.23,0.00020821,2]
[330529916,1719558763412,-962.59,0.00020821,2]
[330529917,1719558763421,-922.79,0.00020821,2]
[330529918,1719558763430,-1891.16,0.00020821,2]
[330529919,1719558763439,-815.93,0.00020821,2]
[330529920,1719558763449,-358.69828593,0.00020821,2]
[330529921,1719558763458,-500.0,0.00020821,2]
[330529922,1719558763467,-500.0,0.00020821,2]
[330529923,1719558763476,-961.91,0.00020821,2]
[330529924,1719558763485,-189.27037215,0.00020821,2]
[330529925,1719558763495,-500.0,0.00020821,2]
[330529926,1719558763504,-841.12,0.00020821,2]
[330529927,1719558763514,-1722.25,0.00020821,2]
[330529928,1719558763524,-521.81,0.00020821,2]
[330529929,1719558763534,-516.01,0.00020821,2]
[330529930,1719558763544,-653.73,0.00020821,2]
[330529931,1719558763553,-500.0,0.00020821,2]
[330529932,1719558763563,-4010.03,0.00020821,2]
[330529933,1719558763572,-5736.35,0.00020821,2]
[330529934,1719558763582,-1901.06,0.00020821,2]
[330529935,1719558763591,-968.86,0.00020821,2]
[330529936,1719558763600,-5130.51,0.00020821,2]
[330529937,1719558763610,-500.0,0.00020821,2]
[330529938,1719558763619,-1271.97,0.00020821,2]
[330529939,1719558763628,-808.32,0.00020821,2]
[330529940,1719558763637,-869.41,0.00020821,2]
[330529941,1719558763646,-500.0,0.00020821,2]
[330529942,1719558763655,-1056.35,0.00020821,2]
[330529943,1719558763664,-1019.98,0.00020821,2]
[330529944,1719558763674,-500.0,0.00020821,2]
[330529945,1719558763684,-4292.01,0.00020821,2]
[330529946,1719558763694,-1954.39,0.00020821,2]
[330529947,1719558763705,-500.0,0.00020821,2]
[330529948,1719558763714,-838.06,0.00020821,2]
[330529949,1719558763724,-500.0,0.00020821,2]
[330529950,1719558763733,-4145.59,0.00020821,2]
[330529951,1719558763743,-1093.84,0.00020821,2]
[330529952,1719558763752,-1653.88,0.00020821,2]
[330529953,1719558763762,-4452.14,0.00020821,2]
[330529954,1719558763771,-164.08995209,0.00020821,2]
[330529955,1719558763781,-3440.08,0.00020821,2]
[330529956,1719558763790,-2256.77,0.00020821,2]
[330529957,1719558763801,-1092.07,0.00020821,2]
[330529958,1719558763811,-1205.22,0.00020821,2]
[330529959,1719558763820,-500.0,0.00020821,2]
[330529960,1719558763831,-970.21,0.00020821,2]
[330529961,1719558763842,-6481.89,0.00020821,2]
[330529962,1719558763853,-1015.77,0.00020821,2]
[330529963,1719558763863,-2173.89,0.00020821,2]
[330529964,1719558763873,-1258.06,0.00020821,2]
[330529965,1719558763883,-756.72,0.00020821,2]
[330529966,1719558763892,-500.0,0.00020821,2]
[330529967,1719558763902,-2781.99,0.00020821,2]
[330529968,1719558763912,-966.96,0.00020821,2]
[330529969,1719558763922,-1416.17,0.00020821,2]